Cogmind - Beta 16 @@@ ROGUE MODE // 2025.11.12 @ 20:33:23 Player: Humbble Result: Destroyed by B-75 Beast with Magnetic Acceleration Cannon Performance ------------- Evolutions (5) 2500 Regions Visited (9) 1800 Robots Destroyed (129) 645 Value Destroyed (4576) 4576 Prototype IDs (1) 20 Alien Tech Used (0) 0 Bonus (528) 528 TOTAL SCORE: 10069 Bonus ------- Follower Combat Kills 528 Cogmind --------- Core Integrity 0/1000 Matter 300/300 Energy 100/100 System Corruption 3% Temperature Cool (12) Movement Core (1350) Ox26 Location -5/Factory Parts ------- > --- POWER (1) -------- (None) > --- PROPULSION (6) --- (None) > --- UTILITY (8) ------ Huge Storage Unit Enhanced Optical Array Improved Signal Interpreter Advanced Targeting Computer Advanced Targeting Computer > --- WEAPON (2) ------- (None) > --- INVENTORY (25) --- Nuclear Core Light Nuclear Core Light Nuclear Core Improved Deuterium Engine Micro Nuclear Core Advanced Heat Sink Coolant Injector High-capacity Storage Unit Advanced Visual Processing Unit Seismic Detector Transport Network Coupler Advanced Targeting Computer Improved Transmission Jammer Improved Thermal Shield Heavy Laser Variable Charge Gun Disruptor Cannon KE Penetrator Smartbomb Launcher Peak State ------------ > --- POWER ------------ Neutrino Core > --- PROPULSION ------- Light Treads Light Treads Medium Treads Medium Treads Medium Treads Medium Treads > --- UTILITY ---------- Cryofiber Web Advanced Heat Sink Advanced Heat Sink Huge Storage Unit Enhanced Optical Array Improved Signal Interpreter Advanced Targeting Computer Advanced Targeting Computer > --- WEAPON ----------- Shock Rifle Variable Charge Gun > --- INVENTORY -------- Nuclear Core Light Nuclear Core Light Nuclear Core Improved Deuterium Engine Micro Nuclear Core Medium Treads Medium Treads Advanced Heat Sink Coolant Injector High-capacity Storage Unit Advanced Visual Processing Unit Seismic Detector Transport Network Coupler Advanced Targeting Computer Improved Transmission Jammer Improved Light Armor Plating Improved Thermal Shield Heavy Laser Disruptor Cannon KE Penetrator KE Penetrator Smartbomb Launcher [Rating: 70] Favorites ----------- Power Ion Engine Engine Ion Engine Power Core Micro Nuclear Core Propulsion Aluminum Leg Treads Medium Treads Leg Aluminum Leg Utility Cryofiber Web Device Cryofiber Web Storage High-capacity Storage Unit Processor Improved Targeting Computer Protection Improved Medium Armor Plating Weapon Heavy Assault Rifle Energy Gun Small Laser Energy Cannon Heavy Ion Cannon Ballistic Gun Heavy Assault Rifle Ballistic Cannon Assault Cannon Build | -11 -10 -9 -8 -7 -7 -7 -6 -6 -5 ------- Run | Yrd Mat Mat Mat Fac Low Low Fac Ext Fac Slots Evolved 10 | . . 2 2 2 . . 2 . 2 Power . | . . . . . . . . . . Propulsion 4 | . . 1 1 . . . 1 . 1 Utility 6 | . . 1 1 2 . . 1 . 1 Weapon . | . . . . . . . . . . Parts Attached 120 | 6 3 28 23 17 2 . 8 18 15 Power 16 | 1 . 4 4 2 . . 2 1 2 Engine 10 | 1 . 4 2 1 . . 1 1 . Core 6 | . . . 2 1 . . 1 . 2 Reactor . | . . . . . . . . . . Propulsion 51 | 2 1 13 10 7 . . 3 10 5 Treads 22 | . . . . 4 . . 3 10 5 Leg 29 | 2 1 13 10 3 . . . . . Wheel . | . . . . . . . . . . Hover . | . . . . . . . . . . Flight . | . . . . . . . . . . Utility 30 | 1 2 5 5 6 1 . 2 3 5 Device 11 | . . 3 1 3 . . 2 1 1 Storage 3 | 1 1 . 1 . . . . . . Processor 6 | . . . 1 1 . . . 1 3 Hackware . | . . . . . . . . . . Protection 10 | . 1 2 2 2 1 . . 1 1 Artifact . | . . . . . . . . . . Weapon 23 | 2 . 6 4 2 1 . 1 4 3 Energy Gun 8 | 1 . 1 . . . . . 4 2 Energy Cannon 2 | . . . . 1 . . 1 . . Ballistic Gun 7 | 1 . 3 2 . . . . . 1 Ballistic Cannon 6 | . . 2 2 1 1 . . . . Launcher . | . . . . . . . . . . Special Weapon . | . . . . . . . . . . Impact Weapon . | . . . . . . . . . . Slashing Weapon . | . . . . . . . . . . Piercing Weapon . | . . . . . . . . . . Special Melee Weapon . | . . . . . . . . . . Unidentified Prototypes 1 | . . 1 . . . . . . . Parts Lost 62 | . . 3 14 4 1 . 3 19 18 Power 3 | . . . 1 . . . . 1 1 Propulsion 32 | . . 1 8 2 . . 1 10 10 Utility 13 | . . 1 2 1 . . 1 3 5 Weapon 14 | . . 1 3 1 1 . 1 5 2 Highest Loss Streak 12 | . . 3 4 2 1 . 2 10 12 To Critical Strikes 1 | . . . . . . . . 1 . Average Backups 17 | 1 6 15 17 20 24 25 24 23 21 Power 4 | . 1 4 5 5 6 7 7 5 4 Propulsion 7 | 1 4 9 8 6 7 7 5 7 3 Utility 3 | . . . 1 5 8 9 8 7 9 Weapon 1 | . . 1 1 2 2 2 3 3 4 Tool/Special . | . . . . . . . . . . Unused Backups 20 | . . 3 1 . 2 . . 3 11 Power 7 | . . 1 . . 1 . . 3 2 Propulsion 3 | . . 2 1 . . . . . . Utility 7 | . . . . . 1 . . . 6 Weapon 3 | . . . . . . . . . 3 Tool/Special . | . . . . . . . . . . Average Slot Usage (%) 97 | . 99 99 93 98 99 100 98 93 90 Engine 6 | . 14 11 5 4 . . 1 6 . Core 1 | . . . 2 2 7 7 4 . 4 Treads 11 | . . . . 15 29 30 31 31 29 Leg 19 | . 28 32 34 13 . . . . . Device 13 | . . 10 10 24 15 15 12 14 18 Storage 10 | . 24 11 9 7 7 7 6 6 5 Processor 7 | . . . 8 8 15 15 13 13 19 Protection 6 | . 2 10 5 4 7 7 12 8 . Energy Gun 3 | . 14 3 . . . . . 3 8 Energy Cannon 1 | . . . . 3 . . 3 4 . Ballistic Gun 7 | . 14 11 9 3 7 7 2 . . Ballistic Cannon 4 | . . 7 6 6 6 7 6 2 . Peak Build Rating 70 | 6 8 25 34 50 51 51 62 61 70 Average Rating 32 | 4 7 17 24 43 48 51 57 52 61 On Entrance 32 | . 6 8 19 34 48 51 51 59 45 Avg Prop Armor Cover (%) 9 | . . . . . . . . . 9 Naked Turns . | . . . . . . . . . . Heaviest Build 124 | 12 52 61 61 111 108 107 124 124 106 Greatest Support 152 | 20 20 45 53 112 112 112 134 136 152 Greatest Overweight (x) 27 | . 2 2 5 21 1 . 1 3 27 Average Overweight (x) . | . 1 1 1 . . . . . . Largest Inventory Capacity 25 | 8 20 20 25 25 25 25 25 25 25 Average Capacity 21 | 7 19 20 20 22 25 25 25 25 25 Most Carried 25 | 3 11 20 20 25 25 25 25 25 25 Average Carried 17 | 1 6 15 17 20 24 25 24 23 21 Final Capacity 25 | 8 20 20 20 25 25 25 25 25 25 Final Carried 25 | 3 11 19 17 25 25 25 25 21 20 Class Distribution -------------------- 55% | Mutant 44% | Scavenger-Mutant Dominant Class ---------------- Mutant | -10/Materials Scavenger-Mutant | -9/Materials Scavenger-Mutant | -8/Materials Mutant | -7/Factory Mutant | -7/Lower Caves Mutant | -7/Lower Caves Mutant | -6/Factory Scavenger-Mutant | -6/Extension Scavenger-Mutant | -5/Factory Resources | -11 -10 -9 -8 -7 -7 -7 -6 -6 -5 ----------- Run | Yrd Mat Mat Mat Fac Low Low Fac Ext Fac Matter Collected 3627 | 187 132 773 882 623 352 4 159 265 250 Remotely 306 | . . . . 294 . . . . 12 Salvage Created 5042 | . 255 1187 1147 934 429 . 198 269 623 Parts 287 | . 22 80 60 51 28 . 7 16 23 Haulers Intercepted 6 | . 1 4 . 1 . . . . . Recyclers Shooed 8 | . 1 1 3 . . . 1 . 2 Parts Field Recycled . | . . . . . . . . . . Retrieved Matter . | . . . . . . . . . . Parts Self-Destructed 27 | . . . . . 27 . . . . Prevented . | . . . . . . . . . . Parts Restored . | . . . . . . . . . . Kills | -11 -10 -9 -8 -7 -7 -7 -6 -6 -5 ------- Run | Yrd Mat Mat Mat Fac Low Low Fac Ext Fac Combat Hostiles Destroyed 106 | . 9 25 27 18 10 . 3 4 10 Melee 1 | . . . . . . . . . 1 Guns 51 | . 9 12 15 . 6 . . . 9 Cannons 53 | . . 13 12 18 4 . 3 3 . Classes Destroyed 12 | . 3 5 . 3 1 . . . . Worker 10 | . . 1 4 2 . . 1 1 1 Builder 2 | . . . . 1 . . . . 1 Hauler 6 | . 1 4 . 1 . . . . . Recycler 3 | . . 1 1 1 . . . . . Watcher 2 | . . 1 . 1 . . . . . Swarmer 18 | . 6 5 3 . 3 . . . 1 Grunt 49 | . 3 10 18 8 3 . 2 . 5 Brawler 4 | . . 1 1 . 1 . . . 1 Duelist 1 | . . . . . 1 . . . . Sentry 22 | . . 9 5 2 1 . 1 4 . Hunter 4 | . . . . 2 1 . . . 1 Programmer 8 | . . . . 6 . . . . 2 Best Kill Streak 10 | . 3 4 10 3 6 . 2 2 4 Combat Bots Only 8 | . 3 4 8 2 6 . 2 2 3 Max Kills in Single Turn 2 | . 1 1 2 1 1 . 2 1 1 Gunslinging . | . . . . . . . . . . Exploded . | . . . . . . . . . . Melee 1 | . . . . . . . . . 1 Uniques/NPCs Destroyed . | . . . . . . . . . . Combat | -11 -10 -9 -8 -7 -7 -7 -6 -6 -5 -------- Run | Yrd Mat Mat Mat Fac Low Low Fac Ext Fac Hostile Shots Fired 1312 | . 43 176 223 160 74 . 58 337 241 Missed 415 | . 16 45 72 57 24 . 24 110 67 Hits 897 | . 27 131 151 103 50 . 34 227 174 Melee 8 | . . 2 . . 6 . . . . Projectile 889 | . 27 129 151 103 44 . 34 227 174 Critical Strikes 26 | . . 4 4 2 3 . 2 6 5 Actively Blocked 2 | . . 2 . . . . . . . Part Disruptions 2 | . . . . . . . . . 2 Damage Taken 13404 | . 248 1639 2288 1333 966 . 360 3393 3177 Core 2266 | . 63 251 304 140 109 . 49 349 1001 Absorbed by Shields . | . . . . . . . . . . Redirected to Shielding 52 | . . 52 . . . . . . . Regen/Repaired (Parts) 89 | . . . 89 . . . . . . Core Remaining (%) 62 | 100 74 37 44 . . 64 . 53 . Volleys Fired 428 | 2 33 95 107 64 36 . 14 35 42 Largest 2 | 2 2 2 2 2 2 . 2 2 2 Hottest 130 | 60 60 68 68 105 71 . 113 130 125 Shots Fired 782 | 4 66 180 177 116 69 . 28 59 83 Gun 469 | 4 66 117 125 13 36 . 2 23 83 Cannon 313 | . . 63 52 103 33 . 26 36 . Launcher . | . . . . . . . . . . Special . | . . . . . . . . . . Kinetic 551 | 2 33 160 169 65 69 . 16 15 22 Thermal 171 | 2 33 19 . 51 . . 12 34 20 Explosive . | . . . . . . . . . . Electromagnetic 60 | . . 1 8 . . . . 10 41 Robot Hit Streak 14 | 3 8 11 14 10 9 . 3 10 10 Robot Miss Streak 5 | 1 4 4 3 3 3 . 3 5 2 Penetration Max 1 | . . . . 1 . . 1 1 1 Secondary Targets 4 | . 1 1 1 . . . . . 1 Max Gunslinging Chain 1 | . 1 1 1 . . . . . 1 Shots Hit Robots 548 | 3 38 115 146 82 46 . 13 42 63 Core Hits 240 | 1 17 46 68 35 22 . 8 15 28 Critical Kills 6 | . . . . . 2 . 1 2 1 Critical Parts Destroyed 8 | . . . . . 3 . 1 4 . Critical Strikes 27 | . . . . 10 5 . 2 8 2 Meltdown 1 | . . . . . . . . 1 . Destroy 14 | . . . . . 5 . 2 6 1 Blast 10 | . . . . 10 . . . . . Corrupt 2 | . . . . . . . . 1 1 Melee Attacks . | . . . . . . . . . . Impact . | . . . . . . . . . . Slashing . | . . . . . . . . . . Piercing . | . . . . . . . . . . Sneak Attacks . | . . . . . . . . . . Combat Hostiles . | . . . . . . . . . . Follow-up Attacks . | . . . . . . . . . . Damage Inflicted 10610 | 30 377 1700 2689 2295 776 . 337 1030 1376 Guns 5362 | 30 365 902 1787 164 416 . 17 375 1306 Cannons 5118 | . . 794 890 2109 360 . 320 645 . Explosions . | . . . . . . . . . . Melee . | . . . . . . . . . . Ramming 130 | . 12 4 12 22 . . . 10 70 Kinetic 7215 | 18 180 1596 2573 1278 776 . 173 191 430 Thermal 2524 | 12 185 100 . 995 . . 164 707 361 Explosive . | . . . . . . . . . . Electromagnetic 741 | . . . 104 . . . . 122 515 Impact . | . . . . . . . . . . Slashing . | . . . . . . . . . . Piercing . | . . . . . . . . . . Highest Corruption 6 | . . 1 . 1 1 1 . 6 3 Average Corruption 2 | . . 1 . 1 1 1 . 5 2 Corruption Purged . | . . . . . . . . . . Corruption Blocked . | . . . . . . . . . . Effects 44 | . . 2 . 9 5 . . 25 3 Message Errors 6 | . . . . . . . . 6 . Matter Fused 15 | . . 2 . 5 1 . . 5 2 Heat Flow Errors 4 | . . . . 2 . . . 2 . Energy Discharges 6 | . . . . . 2 . . 4 . Data Loss (minor) 11 | . . . . 1 1 . . 8 1 Misfires 2 | . . . . 1 1 . . . . Overload Shots . | . . . . . . . . . . Overflow Damage 86 | . . . 25 48 . . . . 13 Projectiles 73 | . . . 25 48 . . . . . Explosions . | . . . . . . . . . . Melee 13 | . . . . . . . . . 13 Knockbacks 24 | . 1 4 8 7 3 . 1 . . Impact 1 | . 1 . . . . . . . . Kinetic 21 | . . 4 6 7 3 . 1 . . Secondary 2 | . . . 2 . . . . . . Self-Inflicted Damage . | . . . . . . . . . . Shots . | . . . . . . . . . . Rammed 6 | . . . . 1 . . . 2 3 Targets Rammed 17 | . 2 1 6 2 . . . 2 4 Kicked 10 | . 2 1 6 1 . . . . . Crushed 1 | . . . . . . . . . 1 Highest Temperature 246 | 40 46 6 . 171 40 . 246 21 . Average Temperature 44 | 20 19 4 . 81 23 . 108 21 . Received Heat Transfer 3591 | . 66 495 1242 402 288 . 141 579 378 Effects 1 | . . . . . . . 1 . . Interference 1 | . . . . . . . 1 . . Siege Activations . | . . . . . . . . . . Martial Activations . | . . . . . . . . . . Shielding Activations . | . . . . . . . . . . Robots Disrupted . | . . . . . . . . . . Combat Hostiles . | . . . . . . . . . . Robots Corrupted 1 | . . . . . . . . . 1 Combat Hostiles . | . . . . . . . . . . Parts Fried 7 | . . . . . . . . . 7 Impact Corruptions 2 | . . . . . . . . . 2 Robots Melted 1 | . . . . . . . . 1 . Combat Hostiles 1 | . . . . . . . . 1 . Parts Melted 5 | . . . . 3 . . . 2 . Heat Transferred 3961 | 25 425 225 . 1332 . . 222 1140 592 Parts Sabotaged . | . . . . . . . . . . Parts Stolen . | . . . . . . . . . . Parts Stripped . | . . . . . . . . . . Power Chain Reactions . | . . . . . . . . . . Alert | -11 -10 -9 -8 -7 -7 -7 -6 -6 -5 ------- Run | Yrd Mat Mat Mat Fac Low Low Fac Ext Fac Maximum Alert Level 1 | . . 1 1 . . . . . . Low Security (%) 82 | 100 100 52 75 100 . . 100 100 100 Level 1 17 | . . 47 24 . . . . . . Level 2 . | . . . . . . . . . . Level 3 . | . . . . . . . . . . Level 4 . | . . . . . . . . . . Level 5 . | . . . . . . . . . . High Security . | . . . . . . . . . . Max Security . | . . . . . . . . . . Peak Influence 313 | . 100 313 239 143 . . 46 103 172 Initial 105 | . . . 105 64 . . 32 4 . Average 85 | . 18 149 131 69 . . 12 28 33 Influence Increases 3651 | . 286 734 704 580 250 . 124 551 422 Destroy 0b10 Robot/C 2400 | . 180 500 540 360 200 . 80 340 200 Destroy 0b10 Robot/NC 140 | . 5 35 25 30 . . 5 30 10 Destroy Leader 510 | . 32 170 100 104 20 . 20 34 30 Allied During Kill 84 | . . . . . . . 2 82 . Successful Hack 71 | . 9 12 7 14 . . 10 19 . Disable Machine 30 | . . . . 30 . . . . . Destroy Structure 41 | . . 2 2 12 . . 7 16 2 Lose Combat Pursuer 375 | . 60 15 30 30 30 . . 30 180 Influence Decreases 3538 | . 286 484 812 615 265 39 167 561 309 Entered New Map 310 | . . . 145 78 41 19 21 6 . Time Decay 2591 | . 286 454 527 497 218 20 105 345 139 Lost Part 491 | . . 30 140 40 6 . 21 84 170 Lost Ally 146 | . . . . . . . 20 126 . Squads Dispatched 19 | . 1 2 2 7 . . 1 2 4 Investigation 4 | . . . 2 1 . . . . 1 Extermination 6 | . . . . 4 . . 1 . 1 Reinforcement 7 | . 1 2 . 2 . . . 2 . Assault . | . . . . . . . . . . Garrison 2 | . . . . . . . . . 2 Intercept . | . . . . . . . . . . Searches Triggered . | . . . . . . . . . . Construction Impeded 1 | . . . . . . . . 1 . Haulers Reinforced 2 | . . . . 2 . . . . . Active Scanning Responses . | . . . . . . . . . . Cargo Convoy Interrupts . | . . . . . . . . . . Stealth | -11 -10 -9 -8 -7 -7 -7 -6 -6 -5 --------- Run | Yrd Mat Mat Mat Fac Low Low Fac Ext Fac Distress Signals 22 | . 1 4 6 4 . . . 4 3 Communications Jammed . | . . . . . . . . . . Distress Signals . | . . . . . . . . . . Times Spotted 214 | . 22 49 39 30 12 . 5 26 31 Peak Tracking Total 8 | . 3 7 7 4 7 . 3 5 8 Tactical Retreats 16 | . 2 1 2 2 2 . . 1 6 Traps | -11 -10 -9 -8 -7 -7 -7 -6 -6 -5 ------- Run | Yrd Mat Mat Mat Fac Low Low Fac Ext Fac Traps Triggered 14 | . . 1 6 4 . . . 2 1 Indirectly . | . . . . . . . . . . Trap Hack Attempts . | . . . . . . . . . . Triggered . | . . . . . . . . . . Disarmed . | . . . . . . . . . . Reprogrammed . | . . . . . . . . . . Reused . | . . . . . . . . . . Traps Extracted . | . . . . . . . . . . Installed . | . . . . . . . . . . Triggered . | . . . . . . . . . . Machines | -11 -10 -9 -8 -7 -7 -7 -6 -6 -5 ---------- Run | Yrd Mat Mat Mat Fac Low Low Fac Ext Fac Machines Disabled 3 | . . . . 2 1 . . . . Max in Single Turn 1 | . . . . 1 1 . . . . Machines Repaired . | . . . . . . . . . . Machines Dismantled . | . . . . . . . . . . Machines Sabotaged . | . . . . . . . . . . Overloaded Fab Kills . | . . . . . . . . . . Hacking | -11 -10 -9 -8 -7 -7 -7 -6 -6 -5 --------- Run | Yrd Mat Mat Mat Fac Low Low Fac Ext Fac Machines Accessed 23 | . 1 4 8 4 1 . 2 2 1 Terminals 15 | . 1 2 5 3 . . 1 2 1 Fabricators . | . . . . . . . . . . Repair Stations 2 | . . . 1 . . . 1 . . Recycling Units 1 | . . . 1 . . . . . . Scanalyzers 3 | . . 2 1 . . . . . . Garrison Access 1 | . . . . 1 . . . . . Total Hacks 53 | . 3 10 23 6 1 . 4 3 3 Successful 31 | . 2 7 13 2 1 . 1 2 3 Failed 20 | . 1 2 9 4 . . 3 1 . Catastrophic 2 | . . . . 2 . . . . . Database Lockouts 2 | . . 1 1 . . . . . . Manual 13 | . . . 12 . . . . . 1 Terminals 32 | . 3 3 13 5 . . 2 3 3 Fabricators . | . . . . . . . . . . Repair Stations 7 | . . . 5 . . . 2 . . Recycling Units 1 | . . . 1 . . . . . . Scanalyzers 11 | . . 7 4 . . . . . . Garrison Access 1 | . . . . 1 . . . . . Terminal Hacks 15 | . 2 3 1 2 1 . 1 2 3 Record 3 | . . . . . . . 1 . 2 Open Door 1 | . . . . . 1 . . . . Locate Traps 2 | . 1 . . 1 . . . . . Transport Status 1 | . . 1 . . . . . . . Zone Layout 8 | . 1 2 1 1 . . . 2 1 Fabricator Hacks . | . . . . . . . . . . Repair Station Hacks 5 | . . . 5 . . . . . . Scan Component 3 | . . . 3 . . . . . . Repair 2 | . . . 2 . . . . . . Recycling Unit Hacks 1 | . . . 1 . . . . . . Retrieve Components 1 | . . . 1 . . . . . . Scanalyzer 5 | . . 4 1 . . . . . . Retrieve Study 5 | . . 4 1 . . . . . . Garrison Access Hacks . | . . . . . . . . . . Unauthorized Hacks 5 | . . . 5 . . . . . . Terminals 5 | . . . 5 . . . . . . Skim 5 | . . . 5 . . . . . . Fabricators . | . . . . . . . . . . Repair Stations . | . . . . . . . . . . Recycling Units . | . . . . . . . . . . Scanalyzers . | . . . . . . . . . . Garrison Access . | . . . . . . . . . . Data Cores Recovered . | . . . . . . . . . . Used . | . . . . . . . . . . Hacking Detections 13 | . 1 1 4 3 . . 2 1 1 Full Trace Events 2 | . . . 1 . . . . . 1 Feedback Events . | . . . . . . . . . . Feedback Blocked . | . . . . . . . . . . Robot Schematics Acquired . | . . . . . . . . . . Robots Built . | . . . . . . . . . . Authchips . | . . . . . . . . . . Time . | . . . . . . . . . . Total Robot Build Rating . | . . . . . . . . . . Part Schematics Acquired . | . . . . . . . . . . Parts Built . | . . . . . . . . . . Authchips . | . . . . . . . . . . Time . | . . . . . . . . . . Total Part Build Rating . | . . . . . . . . . . Part Studies Acquired 4 | . . 4 . . . . . . . Parts Repaired 2 | . . . 2 . . . . . . Time 70 | . . . 70 . . . . . . Parts Recycled . | . . . . . . . . . . Recycled Matter . | . . . . . . . . . . Retrieved Matter . | . . . . . . . . . . Retrieved Components 10 | . . . 10 . . . . . . Parts Scanalyzed . | . . . . . . . . . . Part Schematics Acquired . | . . . . . . . . . . Parts Damaged . | . . . . . . . . . . Bothacking | -11 -10 -9 -8 -7 -7 -7 -6 -6 -5 ------------ Run | Yrd Mat Mat Mat Fac Low Low Fac Ext Fac Used RIF Installer . | . . . . . . . . . . Robots Hacked . | . . . . . . . . . . Non-combat . | . . . . . . . . . . Combat . | . . . . . . . . . . Robot Hacks Applied . | . . . . . . . . . . Relay Couplers Released . | . . . . . . . . . . Fabnet Peak Effective % . | . . . . . . . . . . Robots Rewired 9 | . . . . . 2 . . 7 . Allies Hacked . | . . . . . . . . . . Hacks Repelled . | . . . . . . . . . . Allies | -11 -10 -9 -8 -7 -7 -7 -6 -6 -5 -------- Run | Yrd Mat Mat Mat Fac Low Low Fac Ext Fac Total Allies 9 | . . . . . 2 . . 7 . Largest Group 4 | . . . . . 2 2 2 4 . Highest-Rated Group 123 | . . . . . 50 50 50 123 . Highest-Rated Ally 39 | . . . . . 30 30 30 39 . Total Orders . | . . . . . . . . . . Ally Attacks 106 | . . . . . . . 6 100 . Total Damage 2296 | . . . . . . . 137 2159 . Kills 19 | . . . . . . . 1 18 . Allies Corrupted . | . . . . . . . . . . Allies Melted . | . . . . . . . . . . Intel | -11 -10 -9 -8 -7 -7 -7 -6 -6 -5 ------- Run | Yrd Mat Mat Mat Fac Low Low Fac Ext Fac Active Infowar (turns) 4577 | . . . . 2309 925 53 204 41 1045 Optics 1086 | . . . . . . . . 41 1045 Terrain 1557 | . . . . 375 925 53 204 . . Seismic 1934 | . . . . 1934 . . . . . Robot Analysis Total . | . . . . . . . . . . Derelict Logs Recovered 2 | . . . . . 2 . . . . Drone Launches . | . . . . . . . . . . Drone Recoveries . | . . . . . . . . . . Exploration | -11 -10 -9 -8 -7 -7 -7 -6 -6 -5 ------------- Run | Yrd Mat Mat Mat Fac Low Low Fac Ext Fac Turns Passed 12731 | 128 1610 3385 1785 2339 925 53 388 1073 1045 Spaces Moved 5846 | 97 595 1622 679 1197 487 34 203 465 467 Core 14 | 8 . . . 1 . . . . 5 Treads 2344 | . . . . 693 487 34 203 465 462 Legs 3488 | 89 595 1622 679 503 . . . . . Wheels . | . . . . . . . . . . Hover . | . . . . . . . . . . Flight . | . . . . . . . . . . Fastest Speed 50 | 50 120 175 175 160 160 160 157 157 160 Average Speed 185 | 114 252 186 189 170 160 160 162 183 183 Slowest Speed 1400 | 120 260 260 470 1100 240 160 236 400 1400 Overloaded Moves . | . . . . . . . . . . Propulsion Burnouts . | . . . . . . . . . . Robots Hopped . | . . . . . . . . . . Potential Cave-ins . | . . . . . . . . . . Cave-ins Triggered . | . . . . . . . . . . Exploration Rate (%) 37 | 4 80 84 50 25 53 10 5 55 10 Regions Visited 9 Branch Regions 3 Pre-discovered Areas . | . . . . . . . . . . Known Exits Taken . | . . . . . . . . . . Unknown Exits Taken 9 | 1 1 1 1 1 1 1 1 1 . Scrap Searched 2 | . . . . . 1 1 . . . Spaces Dug 1 | . . . . 1 . . . . . Terrain Destroyed 40 | . . . 2 12 7 . 9 8 2 Melee . | . . . . . . . . . . Projectile 40 | . . . 2 12 7 . 9 8 2 AOE . | . . . . . . . . . . Terrain Rammed . | . . . . . . . . . . Walls Destroyed . | . . . . . . . . . . Machines Disabled . | . . . . . . . . . . Actions | -11 -10 -9 -8 -7 -7 -7 -6 -6 -5 --------- Run | Yrd Mat Mat Mat Fac Low Low Fac Ext Fac Total 6942 | 107 640 1811 987 1381 564 33 232 622 565 Wait 279 | . . 27 144 56 24 . 2 4 22 Move 5837 | 96 594 1621 678 1196 486 33 202 464 467 Hop . | . . . . . . . . . . Pick Up 77 | 3 7 15 7 21 3 . 3 9 9 Fast Attach 39 | 6 2 3 13 8 1 . 1 4 1 Attach 55 | . . 6 13 7 1 . 4 11 13 Detach 8 | . 1 1 . 4 . . . . 2 Swap 57 | . 1 21 13 8 1 . 4 4 5 Drop 52 | . . 21 6 15 3 . 2 5 . Fire 428 | 2 33 95 107 64 36 . 14 35 42 Melee . | . . . . . . . . . . Ram . | . . . . . . . . . . Kick 10 | . 2 1 6 1 . . . . . Crush 7 | . . . . 1 . . . 2 4 Escape Stasis . | . . . . . . . . . . Rewire 93 | . . . . . 9 . . 84 . Trap . | . . . . . . . . . . Miscellaneous . | . . . . . . . . . . Route ------- -11/Scrapyard -10/Materials (discovered 4 exits: *Mat x2 / [*Min x2]) -9/Materials (discovered 2 exits: *Mat x2) -8/Materials -7/Factory (discovered 2 exits: *Fac / *Low) -7/Lower Caves -7/Lower Caves -6/Factory -6/Extension (discovered 2 exits: *Fac / [*Cet]) -5/Factory History --------- Turn | Location | Event 7 | -11/Scrapyard | Discovered new exit (range 14) 129 | -11/Scrapyard | Entered Materials 303 | -10/Materials | Build established: Mutant 373 | -10/Materials | Discovered new exit (range 13) 482 | -10/Materials | Discovered new exit (range 12) 683 | -10/Materials | Discovered new exit (range 12) 1679 | -10/Materials | Discovered new exit (range 15) 1739 | -10/Materials | Entered another Materials area 1739 | -9/Materials | Evolved 2 slots: Propulsion x1, Utility x1 2052 | -9/Materials | Lost 3 parts (1n1u1w) 2317 | -9/Materials | Build established: Scavenger-Mutant 3133 | -9/Materials | Core integrity fell below 50% 3216 | -9/Materials | Build established: Mutant 4178 | -9/Materials | Discovered new exit (range 13) 4406 | -9/Materials | Central database locked down 4529 | -9/Materials | Build established: Scavenger-Mutant 5048 | -9/Materials | Discovered new exit (range 16) 5124 | -9/Materials | Entered another Materials area 5124 | -8/Materials | Evolved 2 slots: Propulsion x1, Utility x1 5911 | -8/Materials | Destroyed 8 combat bots 6055 | -8/Materials | Central database locked down 6062 | -8/Materials | Build established: Mutant 6347 | -8/Materials | Lost 4 parts (2n1u1w) 6480 | -8/Materials | Core integrity fell below 50% 6518 | -8/Materials | Lost 3 parts (2n1w) 6674 | -8/Materials | Repaired Cryofiber Web 6708 | -8/Materials | Repaired Imp. Aluminum Leg+ 6786 | -8/Materials | Build established: Scavenger-Mutant 6789 | -8/Materials | Discovered new exit (range 15) 6909 | -8/Materials | Entered Factory 6909 | -7/Factory | Evolved 2 slots: Utility x2 7876 | -7/Factory | Build established: Mutant 9091 | -7/Factory | Allied Derelicts emerged from ambush trap array 9210 | -7/Factory | Discovered new exit (range 12) 9248 | -7/Factory | Discovered new exit (range 15) 9248 | -7/Factory | Entered Lower Caves 9393 | -7/Lower Caves | Encountered a Warlord checkpoint 9439 | -7/Lower Caves | Found DCF Scrap (12 items) 9491 | -7/Lower Caves | Learned Factory stockpile data 9990 | -7/Lower Caves | Learned Factory emergency access door positions 10000 | -7/Lower Caves | Attracted the attention of an 0b10 outpost 10156 | -7/Lower Caves | Discovered new exit (range 8) 10173 | -7/Lower Caves | Entered another Lower Caves area 10173 | -7/Lower Caves | Accompanied by 2 allies 10197 | -7/Lower Caves | Discovered new exit (range 13) 10226 | -7/Lower Caves | Entered Factory 10226 | -6/Factory | Accompanied by 2 allies 10226 | -6/Factory | Evolved 2 slots: Propulsion x1, Utility x1 10375 | -6/Factory | Discovered new exit (range 15) 10614 | -6/Factory | Entered Extension 10821 | -6/Extension | Build established: Scavenger-Mutant 10971 | -6/Extension | Lost 3 parts (2n1u) 10995 | -6/Extension | Lost 3 allies 11297 | -6/Extension | Spotted B-75 Beast 11311 | -6/Extension | Spotted B-75 Beast 11331 | -6/Extension | Allies destroyed B-75 Beast 11352 | -6/Extension | Allies destroyed B-75 Beast 11391 | -6/Extension | Lost 10 parts (1p5n2u2w) 11542 | -6/Extension | Lost 3 allies 11612 | -6/Extension | Discovered new exit (range 16) 11612 | -6/Extension | Discovered new exit (range 16) 11687 | -6/Extension | Entered Factory 11687 | -5/Factory | Evolved 2 slots: Propulsion x1, Utility x1 11718 | -5/Factory | Lost 4 parts (3n1w) 12516 | -5/Factory | Spotted B-75 Beast 12555 | -5/Factory | Garrison activated, responded to threat 12694 | -5/Factory | Core integrity fell below 50% 12701 | -5/Factory | Lost 12 parts (1p6n3u2w) 12722 | -5/Factory | Core integrity fell below 20% 12732 | -5/Factory | Destroyed by B-75 Beast with Magnetic Acceleration Cannon Last Messages --------------- 12643_ ALERT: Cargo convoy en route, clear transfer corridor. 12650_ Med. Treads destroyed. 12658_ Slammed into S-27 Virus. 12658_ S-27 Virus destroyed. 12659_ Acquired 10 matter. 12660_ System corrupted: Matter fused (-10). 12660_ Acquired 10 matter. 12663_ S-27 Virus destroyed. 12663_ Med. Treads destroyed. 12664_ U-05 Engineer builds a Door. 12666_ KE Penetrator destroyed. 12670_ Penetrated by Slug. 12670_ Imp. Light Armor Plating destroyed. 12675_ Slug penetrates Wall. 12678_ Penetrated by Slug. 12693_ Imp. Sensor Array tumbles out of TF Node. 12708_ Knocked back. 12708_ Penetrated by Slug. 12719_ Slug penetrates Wall. 12728_ Penetrated by Slug. Map ----- +----------------------------------------------------+ | ?????????????????????????????????????????????????? | | ?????????????????????????????????????????????????? | | ?????????????????????????????????????????????????? | | ?????????????????????????????????????????????????? | | ?????????????????????????????????????????????????? | | ?????????????????????????????????????????????????? | | ?????????????????????????????????????????????????? | | ?????????????????????????????????????????????????? | | ?????????????????????????????????????????????????? | | ?????????????????????????????????????????????????? | | ?????????????????????????????????????????????????? | | ?????????????????????????????????????????????????? | | ?????????????????????????????????????????????????? | | ?????????????????????????????????????????????????? | | ?????????????????????????????????????????????????? | | ?????????????????????????????????????????????????? | | ?????????????????????????????????????????????????? | | ?????????????????????????????????????????????????? | | ???????# ???????????#????????????????????????????? | | ???????# ?????????# ???????????????????????????? | | ????????? ????????# ???????????????????????????? | | ?????????# ""??????# ??????????????????????????? | | ?????????? ?????# ??????????????????????????? | | ?????????# """ ????# %?????????????????????????? | | ?????????+ """ ??##;;####?????????????????????? | | ?????????# """ ?#""#;@%#?????????????????????? | | ?????????# # !%######## T ???????? | | ?????????# """^ #Y %% % "" ?????????? | | ?????????# """ # BB######### ?????? | | ?????????# """ ##BB#????????????????????????? | | ?????????# #g "#????????????????????????? | | ?????????# """ ;;+#####?????????????????????? | | ?????????# """ !; % #?????????????????????? | | ?????????# """ ; """" #?????????????????????? | | ?????????# ;%"""" #?????????????????????? | | ?????????# """ # """" +?????????????????????? | | ?????????# """^ + """" #?????????? #???????? | | ?????????# """ # #??????? ! #???????? | | ?????????# ####+####### +???????? | | ?????????# """ / #???????? | | ?????????# """ ### #???????? | | ?????????# """ #???????????????#???? | | #######??# ############### #???? | | #??# """ % +???? | | #??# ^""" #???? | | #??# """ #???? | | = #??# % #???? | | ] #??# % "#+####???? | | #??# "# ??????? | | #??# ####+########### #" #????? | +----------------------------------------------------+ Best States ------------- Heat Dissipation 116 Energy Generation 19 Energy Capacity 315 Matter Stores 300 Matter Capacity 300 Sight Range 22 Terrain Scan Range 16 Terrain Scan Density 210 Base Temperature (-) 100 Armor Coverage 450 Propulsion Shielding 33 Evasion (%) 55 Targeting Accuracy 16 Recoil Reduction 6 Item Schematics ----------------- None Robot Schematics ------------------ None Fabricated ------------ Nothing Repaired ---------- Cryofiber Web | 33% | -8/Materials Imp. Aluminum Leg | 31% | -8/Materials Studied --------- Imp. Light Cannon | -9/Materials | Hacked Imp. Aluminum Leg | -9/Materials | Hacked Carbon-fiber Leg | -9/Materials | Hacked Hvy. Assault Rifle | -9/Materials | Hacked Alien Tech Used ----------------- None Achievements -------------- DIY Cooler That Tickles Challenges ------------ None Game ------ Seed PropulsionThiefStrikerail Manual? 0 Play Time 01:45:16 Cumulative 55.2 hours Start 2025.11.10 @ 21:22:04 End 2025.11.12 @ 20:33:23 Sessions 5 Manual Loads 0 Difficulty Rogue Special Mode None Game No. 53 Rogue 48 Adventurer 0 Explorer 5 Win Type - Total 0 Types 0/0/0/0/0/0/0/0/0/0 Lore% 25 Gallery% 27 Achievement% 19 Wizard Run 0 Options --------- Layout 0 ASCII 0 Keyboard 1 Movement Numpad Keybinds 0 Fullscreen 2 Font 18/SmallcapsGlow Map View 76x50 Zoom Use 0% Tactical HUD 1 Map Filters NONE Filters NONE Steam 1 RUN: c9d04c64-817b-4a07-9ec6-2c80e829adb8